{"text_format":"1","workbook":"xlsx","n_sheets":11,"sheets":["Start","01_Gruendungsphasen","02_Geschaeftsidee","03_Entscheidungen","04_Standort","05_Rechtsform","06_Startfinanzierung","07_Businessplan","08_BWL_Grundbegriffe","09_Entsch_Test1","Blanko1"],"not_rendered":{"charts":0,"images":94,"macros":1,"external_links":0,"defined_names":139,"comments":0,"pivot_tables":0},"unopened":[],"bounds":{"document_bytes":16777216,"sheet_cells":100000,"rows_first":2000,"rows_last":500,"rows_between":2000,"halvings":0,"cell_chars":16384,"cell_head_chars":4096},"cells_cut":0,"cells_raw":0,"read":"whole","date_system":"1900"}

{"sheet":"Start","index":0,"n_rows":22,"n_cols":31,"rows_kept":22,"cut":false,"hidden":false,"merged":[[20,5,20,7],[21,5,21,7],[16,12,16,19]]}
[null,null,null,null,null,null,null,null,null,null,null,null,null,null,null,null,null,null,null,null,null,null,null,null,null,null,null,null,null,0,"Start"]
[null,null,null,null,null,null,null,"Modul 02 : Unternehmensgründung",null,null,null,null,null,null,null,null,null,null,null,null,null,null,null,null,null,null,null,null,null,{"$f":"AD1+1","v":1},"01_Gruendungsphasen"]
[null,null,null,null,null,null,null,null,null,null,null,null,null,null,null,null,null,null,null,null,null,null,null,null,null,null,null,null,null,{"$f":"AD2+1","v":2},"02_Geschaeftsidee"]
[null,null,null,null,null,null,null,null,null,null,null,null,"Anmerkungen:",null,null,null,null,null,null,null,null,null,null,null,null,null,null,null,null,3,"03_Entscheidungen"]
[null,null,null,null,null,null,null,null,null,null,null,null,null,null,null,null,null,null,null,null,null,null,null,null,null,null,null,null,null,4,"04_Standort"]
[null,null,null,null,null,null,null,null,null,null,null,null,"In diesem excel- und makrobasierten Wissenstest  werden \"Step-by-step\" die",null,null,null,null,null,null,null,null,null,null,null,null,null,null,null,null,5,"05_Rechtsform"]
[null,null,null,null,null,null,null,null,null,null,null,null," betriebswirtschaftlichen Grundlagen und Zusammenhänge bei der Ingang-",null,null,null,null,null,null,null,null,null,null,null,null,null,null,null,null,6,"06_Startfinanzierung"]
[null,null,null,null,null,null,null,null,null,null,null,null,"setzung des Geschäftsbetriebs eines fiktiven, neu zu  gründenden Unterneh-",null,null,null,null,null,null,null,null,null,null,null,null,null,null,null,null,7,"07_Businessplan"]
[null,null,null,null,null,null,null,null,null,null,null,null,"mens vermittelt und mit entsprechenden Wissenstests verbunden.",null,null,null,null,null,null,null,null,null,null,null,null,null,null,null,null,8,"08_BWL_Grundbegriffe"]
[null,null,null,null,null,null,null,null,null,null,null,null,null,null,null,null,null,null,null,null,null,null,null,null,null,null,null,null,null,9,"09_Entscheidungstest 1"]
[null,null,null,null,null,null,null,null,null,null,null,null,"Konzeptionelle Grundlage des in diesem Lernmodul behandelten Fallbeispiels"]
[null,null,null,null,null,null,null,null,null,null,null,null,"bilden das vom Autor kreiierte \"Kreislaufmodell des Umsatzprozesses\" sowie"]
[null,null,null,null,null,null,null,null,null,null,null,null,"weitere Ausführungen in folgenden Büchern des Autors im Springer-Gabler-"]
[null,null,null,null,null,null,null,null,null,null,null,null,"Verlag, Wiesbaden:"]
[null,null,null,null,null,null,null,null,null,null,null,null,"(1) \"Betriebswirtschaftslehre - Eine Einführung\","]
[null,null,null,null,null,null,null,null,null,null,null,null,"(2) Arbeitsbuch zu \"Betriebswirtschaftslehre ...\""]
[null,null,null,null,null,null,null,null,null,null,null,null,"(3) Projekte und Projektmanagement"]
[]
[null,null,null,null,null,null,null,null,null,null,null,null,"In diesem Teil 1 der Lernsoftware geht es zunächst um die vorzubereitenden,"]
[null,null,null,null,null,null,null,null,null,null,null,null,"sog. konstitutiven Entscheidungen bei einer Unternehmensgründung."]
[null,null,null,null,null,"Tabellen-Auswahl",null,null,null,null,null,null,"Die Bearbeitung der einzelnen Teile in diesem Lernmodul sollte in der Reihen-"]
[null,null,null,null,null,0,null,null,null,null,null,null,"folge der im Register (Auswahl) angezeigten Tabellen vorgenommen werden."]

{"sheet":"01_Gruendungsphasen","index":1,"n_rows":29,"n_cols":36,"rows_kept":29,"cut":false,"hidden":false,"merged":[[2,2,2,9]]}
[null,null,null,null,null,null,null,null,null,null,null,null,null,null,null,null,null,null,null,null,null,null,null,null,null,null,null,null,null,null,null,null,null,null,1,"Auswahlliste"]
[null,null,null,null,null,null,null,null,null,null,null,null,null,null,null,null,null,null,null,null,null,null,null,null,null,null,null,null,null,null,null,null,null,null,{"$f":"AI1+1","v":2},"Anlaufphase"]
[null,null,null,null,null,null,null,null,null,null,null,null,null,null,null,null,null,null,null,null,null,null,null,null,null,null,null,null,null,null,null,null,null,null,{"$f":"AI2+1","v":3},"Entscheidungsphase"]
[null,null,"Gründungsphasen",null,null,null,null,null,null,null,null,null,null,null,null,null,null,null,null,null,null,null,null,null,null,null,null,null,null,null,null,null,null,null,4,"Festigungsphase"]
[null,null,null,null,null,null,null,null,null,null,null,null,null,null,null,null,null,null,null,null,null,null,null,null,null,null,null,null,null,null,null,null,null,null,5,"Genehmigungsphase"]
[null,null,"Die Neugründung eines Unternehmens bedingt die Erledigung einer Vielzahl von Aktivitäten, die ihrerseits bestimmten Phasen zugeordnet werden können.",null,null,null,null,null,null,null,null,null,null,null,null,null,null,null,null,null,null,null,null,null,null,null,null,null,null,null,null,null,null,null,6,"Gründungsphase"]
[null,null,"Die nachstehende Abb. 01 zeigt den Zusammenhang dieser Aktivitäten mit insgesamt sechs Phasen.",null,null,null,null,null,null,null,null,null,null,null,null,null,null,null,null,null,null,null,null,null,null,null,null,null,null,null,null,null,null,null,7,"Konzeptionsphase"]
[null,null,"Ihre Aufgabe besteht darin, die zutreffende Bezeichnung der jeweiligen Phase aus einer Liste vorgegebener Namen auszuwählen.",null,null,null,null,null,null,null,null,null,null,null,null,null,null,null,null,null,null,null,null,null,null,null,null,null,null,null,null,null,null,null,8,"Orientierungsphase"]
[null,null,null,null,null,null,null,null,null,null,null,null,null,null,null,null,null,null,null,null,null,null,null,null,null,null,null,null,null,null,null,null,null,null,9,"Umsetzungsphase"]
[null,null,null,null,null,null,null,null,null,null,null,null,"Bewertung Ihrer Aktionen:",null,null,null,null,null,null,null,null,null,null,null,null,null,null,null,null,null,null,null,null,null,10,"Vorbereitungsphase"]
[]
[null,null,null,null,null,null,null,null,null,null,null,null,"Versuch","1.","2.","3.","4."]
[null,null,null,1,null,null,null,null,null,null,null,null,"1. Phase"]
[null,null,null,null,null,null,null,null,null,null,null,null,"2. Phase"]
[null,null,null,null,null,1,null,null,null,null,null,null,"3. Phase"]
[null,null,null,null,null,null,null,null,null,null,null,null,"4. Phase"]
[null,null,null,null,null,null,null,null,null,null,null,null,"5. Phase"]
[null,null,null,null,null,null,1,null,null,null,null,null,"6. Phase"]
[]
[]
[]
[]
[]
[]
[null,null,null,null,1]
[]
[]
[null,null,null,null,1]
[null,null,null,null,null,null,null,null,null,1]

{"sheet":"02_Geschaeftsidee","index":2,"n_rows":19,"n_cols":50,"rows_kept":19,"cut":false,"hidden":false,"merged":[[2,2,2,9]]}
[null,null,null,null,null,null,null,null,null,null,null,null,null,null,null,null,null,null,null,null,null,null,null,null,null,null,null,null,null,null,null,null,null,null,null,null,null,null,null,1,"1 - Motive des Gründers?",null,1,"2 - Neugründung: Wie angehen?",null,1,"3 - Was zum Markt erkunden?",null,1,"4 - Worüber verfüge ich bereits?"]
[null,null,null,null,null,null,null,null,null,null,null,null,null,null,null,null,null,null,null,null,null,null,null,null,null,null,null,null,null,null,null,null,null,null,null,null,null,null,null,{"$f":"AN1+1","v":2},"An der Börse spekulieren?",null,2,"Kapital beschaffen?",null,{"$f":"AT1+1","v":2},"Nur physischer Markt?",null,{"$f":"AW1+1","v":2},"Ausreichender Gründungswillen?"]
[null,null,null,null,null,null,null,null,null,null,null,null,null,null,null,null,null,null,null,null,null,null,null,null,null,null,null,null,null,null,null,null,null,null,null,null,null,null,null,{"$f":"AN2+1","v":3},"Familienbetrieb fortführen?",null,3,"Allein versuchen?",null,{"$f":"AT2+1","v":3},"Sättigungsgrad?",null,{"$f":"AW2+1","v":3},"Notwendiges Know-how?"]
[null,null,"Geschäftsidee",null,null,null,null,null,null,null,null,null,null,null,null,null,null,null,null,null,null,null,null,null,null,null,null,null,null,null,null,null,null,null,null,null,null,null,null,4,"Wohnungswechsel?",null,4,"Mit einem Partner angehen?",null,4,"Nachfragepotenzial?",null,4,"Solvente Hausbank?"]
[null,null,null,null,null,null,null,null,null,null,null,null,null,null,null,null,null,null,null,null,null,null,null,null,null,null,null,null,null,null,null,null,null,null,null,null,null,null,null,5,"Etwas Bleibendes schaffen?",null,5,"Kunden werben?",null,5,"Marktanteil?",null,5,"Geeignete Gewerberäume?"]
[null,null,"Eine Geschäftsidee ist - in ihrer ersten Form - eine mehr oder weniger präzise Vorstellung des Unternehmensgründers davon, mit welchem Angebot ",null,null,null,null,null,null,null,null,null,null,null,null,null,null,null,null,null,null,null,null,null,null,null,null,null,null,null,null,null,null,null,null,null,null,null,null,6,"Mangel an Alternativen?",null,6,"Ein Produkt erstellen?",null,6,"Konkurrenz am Standort?",null,6,"Eigene Webpräsenz?"]
[null,null,"an Produkten oder mit welcher Art von Dienstleistungen eine zu gründende, tragfähige  wirtschaftliche Existenz aufgebaut werden kann.  ",null,null,null,null,null,null,null,null,null,null,null,null,null,null,null,null,null,null,null,null,null,null,null,null,null,null,null,null,null,null,null,null,null,null,null,null,7,"Eigene Ideen verwirklichen?",null,7,"Eine Dienstleistung anbieten?",null,7,"Nur Internet (E-Commerce)?",null,{"$f":"AW6+1","v":7},"Erforderliches Eigenkapital?"]
[null,null,"Problem: Welche Überlegungen sollte ein Gründungswilliger unabdingbar anstellen, um seine Idee bzw. sein Motiv für eine Unternehmensgründung zu fundieren?",null,null,null,null,null,null,null,null,null,null,null,null,null,null,null,null,null,null,null,null,null,null,null,null,null,null,null,null,null,null,null,null,null,null,null,null,8,"Als Manager fungieren?",null,8,"Erst im Internet recherchieren?",null,8,"Preiselastizität?"]
[null,null,"Die nachstehende Abb. 02 beinhaltet ausgewählte Aspekte und Fragen, die zur Lösung dieses Problems hinführen sollen.",null,null,null,null,null,null,null,null,null,null,null,null,null,null,null,null,null,null,null,null,null,null,null,null,null,null,null,null,null,null,null,null,null,null,null,null,null,null,null,null,null,null,9,"Potenzielle Kunden?"]
[null,null,"Ihre Aufgabe besteht darin, die zutreffende Antworten auf ausgewählte Fragen aus der Liste möglicher Antworten - in der Reihenfolge der  Listen - auszuwählen.",null,null,null,null,null,null,null,null,null,null,null,null,null,null,null,null,null,null,null,null,null,null,null,null,null,null,null,null,null,null,null,null,null,null,null,null,null,null,null,null,null,null,10,"Weg zum Markt?"]
[]
[null,null,null,null,null,null,null,null,null,null,null,null,null,"Auswertung der Antworten"]
[null,null,null,null,null,null,null,null,null,null,null,null,null,null,null,"Ziel:"]
[null,null,null,0,null,null,null,null,null,0,null,null,null,"Richtig",0,18]
[null,null,null,null,null,null,null,null,null,null,null,null,null,"Nicht richtig:",0,0]
[]
[]
[null,null,null,null,null,null,null,0]
[null,null,null,null,0]

{"sheet":"03_Entscheidungen","index":3,"n_rows":31,"n_cols":37,"rows_kept":31,"cut":false,"hidden":false,"merged":[[2,2,2,9]]}
[null,null,null,null,null,null,null,null,null,null,null,null,null,null,null,null,null,null,null,null,null,null,null,null,null,null,null,null,null,null,null,null,null,null,1,"Wichtige Entscheidungs-Sachverhalte"]
[null,null,null,null,null,null,null,null,null,null,null,null,null,null,null,null,null,null,null,null,null,null,null,null,null,null,null,null,null,null,null,null,null,null,{"$f":"AI1+1","v":2},"Entscheidungswahrscheinlichkeit"]
[null,null,null,null,null,null,null,null,null,null,null,null,null,null,null,null,null,null,null,null,null,null,null,null,null,null,null,null,null,null,null,null,null,null,{"$f":"AI2+1","v":3},"Entscheidungsträger",2]
[null,null,"Entscheidungen",null,null,null,null,null,null,null,null,null,null,null,null,null,null,null,null,null,null,null,null,null,null,null,null,null,null,null,null,null,null,null,4,"Entscheidungsalternativen",5]
[null,null,null,null,null,null,null,null,null,null,null,null,null,null,null,null,null,null,null,null,null,null,null,null,null,null,null,null,null,null,null,null,null,null,5,"Entscheidungskompetenz",6]
[null,null,"Entsprechend den in Tabelle 01 dargestellten Gründungsphasen sind nach Klärung bzw. Überprüfung der wichtigsten Aspekte beim Finden einer Geschäftsidee nunmehr ",null,null,null,null,null,null,null,null,null,null,null,null,null,null,null,null,null,null,null,null,null,null,null,null,null,null,null,null,null,null,null,6,"Entscheidungsoptimum"]
[null,null,"definitive Entscheidungen zu treffen.",null,null,null,null,null,null,null,null,null,null,null,null,null,null,null,null,null,null,null,null,null,null,null,null,null,null,null,null,null,null,null,7,"Entscheidungskriterium",7]
[null,null,"Um welche konstitutiven Entscheidungen es hierbei geht, wurde bereits im Kommentar zur betreffenden Phase im Gründungsprozess (Tab. 01) aufgeführt.",null,null,null,null,null,null,null,null,null,null,null,null,null,null,null,null,null,null,null,null,null,null,null,null,null,null,null,null,null,null,null,8,"Restriktionen",14]
[null,null,"Da das Treffen von Entscheidungen immer unabdingbar mit den Aufgaben und den Aktivitäten eines \"Chefs\" verbunden ist, wollen wir uns hier zu grundlegenden Sachverhalten",null,null,null,null,null,null,null,null,null,null,null,null,null,null,null,null,null,null,null,null,null,null,null,null,null,null,null,null,null,null,null,9,"Opportunitätskosten",12]
[null,null,"des so wichtigen Themas \"Entscheidungen\" verständigen. Zunächst kann festgestellt werden:",null,null,null,null,null,null,null,null,null,null,null,null,null,null,null,null,null,null,null,null,null,null,null,null,null,null,null,null,null,null,null,10,"Umfeldsituationen",8]
[null,null,null,"Eine Entscheidung ist das Treffen einer Wahl zwischen mindestens zwei Alternativen.",null,null,null,null,null,null,null,null,null,null,null,null,null,null,null,null,null,null,null,null,null,null,null,null,null,null,null,null,null,null,11,"Auszahlungen",11]
[null,null,"Soweit, so gut, aber wird damit das Thema \"Entscheidungen\" (speziell im Wirtschaftsleben) ausreichend gekennzeichnet? ",null,null,null,null,null,null,null,null,null,null,null,null,null,null,null,null,null,null,null,null,null,null,null,null,null,null,null,null,null,null,null,12,"Entscheidungssituation",1]
[null,null,"Nachfolgend werden eine Reihe von Sachverhalten in einer Liste aufgeführt, die mit \"Entscheidungen\" in Verbindung stehen könnten. Ihre Aufgabe besteht darin, diejenigen ",null,null,null,null,null,null,null,null,null,null,null,null,null,null,null,null,null,null,null,null,null,null,null,null,null,null,null,null,null,null,null,13,"Entscheidungsregel",10]
[null,null,"Aspekte aus  der Liste auszuwählen, die bei Entscheidungen (in der Wirtschaft) unabdingbar zu beachten sind.",null,null,null,null,null,null,null,null,null,null,null,null,null,null,null,null,null,null,null,null,null,null,null,null,null,null,null,null,null,null,null,{"$f":"AI13+1","v":14},"Typen von Entscheidungssituationen",13]
[null,null,null,null,null,null,null,null,null,null,null,null,null,null,null,null,null,null,null,null,null,null,null,null,null,null,null,null,null,null,null,null,null,null,15,"Entscheidungsziele",4]
[null,null,null,null,null,0,null,"Auswertung der Auswahl-Aktionen",null,null,null,null,null,null,null,null,null,null,null,null,null,null,null,null,null,null,null,null,null,null,null,null,null,null,16,"Daten- und Wissensbasis",9]
[null,null,null,null,null,null,null,null,null,null,null,null,null,null,null,null,null,null,null,null,null,null,null,null,null,null,null,null,null,null,null,null,null,null,17,"Entscheidungsfindung",3]
[null,null,null,null,1,null,null,"Richtig:",null,0,"  Nicht richtig:",0]
[null,null,null,null,{"$f":"E18+1","v":2}]
[null,null,null,null,{"$f":"E19+1","v":3}]
[null,null,null,null,4]
[null,null,null,null,5]
[null,null,"Unternehmensgründer",null,6]
[null,null,null,null,7]
[null,null,null,null,8]
[null,null,null,null,9]
[null,null,null,null,{"$f":"E26+1","v":10}]
[null,null,null,null,11]
[null,null,null,null,12]
[null,null,null,null,13]
[null,null,null,null,14]

{"sheet":"04_Standort","index":4,"n_rows":27,"n_cols":16,"rows_kept":27,"cut":false,"hidden":false,"merged":[[2,2,2,9]]}
[]
[]
[]
[null,null,"Standort, Wirkungsraum, Standortfaktoren"]
[]
[null,null,"Der Standort eines Unternehmens ist der geographische Ort, an dem die Leistungsfaktoren zur Erstellung der Produkte des jeweiligen Unternehmens zum Einsatz kommen."]
[null,null,"Die Wahl eines geeigneten Standortes gehört zu den konstitutiven Entscheidungen der Gründung eines Unternehmens."]
[null,null,"Mit der Festlegung zum Standort wird i. d. R. zugleich auch der Wirkungsraum bestimmt, innerhalb dessen sich die Aktivitäten des Unternehmens im Rahmen ihres Geschäfts-"]
[null,null,"betriebes erstrecken sollen. Dieser Wirkungsraum kann lokal oder regional begrenzt sein oder sich auf den deutschen bzw. EU-Wirtschaftsraum erstrecken. Unter Nutzung des"]
[null,null,"Internets kann der Wirkungsraum sogar global bestimmt werden."]
[null,null,"Unter Standortfaktoren sind alle jene Sachverhalte und Gegebenheiten zu verstehen, deren ortsspezifisches Wirken signifikanten Einfluss auf die Wahl des konkreten Standortes "]
[null,null,"für die Gründung eines Unternehmens haben."]
[null,null,"Dabei sind einerseits aufwandsbeeinflussende und andererseits ertragsbeeinflussende Faktoren zu unterscheiden."]
[]
[null,null,null,null,null,null,null,null,null,null,null,"Ihre Aufgabe:"]
[null,null,null,null,null,null,null,null,null,null,null,"Tragen Sie in die nachstehenden Tabellen Kurzbezeichnungen"]
[null,null,null,null,null,null,null,null,null,null,null,"für typische Standortfaktoren ein!"]
[]
[null,null,null,null,null,null,null,null,null,null,null,"Nr.","Aufwandsfaktoren",null,"Nr.","Ertragsfaktoren"]
[null,null,null,null,null,null,null,null,null,null,null,1,null,null,1]
[null,null,null,null,null,null,null,null,null,null,null,{"$f":"L20+1","v":2},null,null,{"$f":"O20+1","v":2}]
[null,null,null,null,null,null,null,null,null,null,null,3,null,null,3]
[null,null,null,null,null,null,null,null,null,null,null,4,null,null,4]
[null,null,null,null,null,null,null,null,null,null,null,5,null,null,5]
[null,null,null,null,null,null,null,null,null,null,null,6,null,null,6]
[null,null,null,null,null,null,null,null,null,null,null,7,null,null,7]
[null,null,null,null,null,null,null,null,null,null,null,{"$f":"L26+1","v":8},null,null,{"$f":"O26+1","v":8}]

{"sheet":"05_Rechtsform","index":5,"n_rows":27,"n_cols":15,"rows_kept":27,"cut":false,"hidden":false,"merged":[[2,2,2,9],[14,12,14,14],[15,12,15,14],[16,12,16,14],[17,12,17,14],[23,12,23,14],[24,12,24,14],[25,12,25,14],[26,12,26,14],[18,12,18,14],[19,12,19,14],[20,12,20,14],[21,12,21,14],[22,12,22,14]]}
[]
[]
[]
[null,null,"Wahl der geeigneten Rechtsform"]
[]
[null,null,"Die Wahl einer geeigneten Rechtsform gehört mit zu den konstitutiven Entscheidungen bei der Gründung eines Unternehmens."]
[null,null,"Unter Rechtsform  ist  - hier betrachteten Kontext  -  eine durch die Bestimmungen im  Gesellschafts- und Handelsrecht geregelte  Form der rechtlichen Konstituierung"]
[null,null," und Firmierung   eines privatwirtschaftlichen Unternehmens zu verstehen. "]
[null,null,"Durch die  gewählte Rechtsform werden  - vom Grundsatz her  - vor allem die Ausgestaltung der Entscheidungskompetenzen"]
[null,null,null,"a)  im Inneren (Fragen der Geschäftsführungsbefugnisse) sowie "]
[null,null,null,"b) in den Beziehungen des Unternehmens nach außen (Fragen der Vertretung gegenüber Dritten, Haftung für eingegangene Verbindlichkeiten) "]
[null,null,"bestimmt."]
[null,null,"Frage: Welche Rechtsformen kennen Sie?",null,null,null,null,null,null,null,"Aufgabe:","Tragen Sie in nachstehende Tabelle die übliche Kurzbezeichnung für die"]
[null,null,null,null,null,null,null,null,null,null,null,"Ihnen bekannten Rechtsformen ein!                 Richtige Eingaben =",null,null,0]
[null,null,null,null,null,null,null,null,null,null,null,"Nr.","Bezeichnung"]
[null,null,null,null,null,null,null,null,null,null,null,1]
[null,null,null,null,null,null,null,null,null,null,null,{"$f":"L16+1","v":2}]
[null,null,null,null,null,null,null,null,null,null,null,{"$f":"L17+1","v":3}]
[null,null,null,null,null,null,null,null,null,null,null,4]
[null,null,null,null,null,null,null,null,null,null,null,5]
[null,null,null,null,null,null,null,null,null,null,null,6]
[null,null,null,null,null,null,null,null,null,null,null,7]
[null,null,null,null,null,null,null,null,null,null,null,8]
[null,null,null,null,null,null,null,null,null,null,null,9]
[null,null,null,null,null,null,null,null,null,null,null,10]
[null,null,null,null,null,null,null,null,null,null,null,11]
[null,null,null,null,null,null,null,null,null,null,null,12]

{"sheet":"06_Startfinanzierung","index":6,"n_rows":33,"n_cols":38,"rows_kept":33,"cut":false,"hidden":false,"merged":[[22,11,22,16],[23,11,23,16],[24,11,24,16],[32,16,32,18],[2,2,2,9],[18,11,18,16],[19,11,19,16],[20,11,20,16],[21,11,21,16]]}
[]
[]
[]
[null,null,"Startfinanzierung"]
[]
[null,null,"Auch bei der Gründung von Unternehmen heißt es: \"Ohne Moos, nichts los!\""]
[null,null,"Alle bisher erbrachten Vorleistungen, Vorklärungen und Entscheidungen gehen \"ins Leere\", wenn es für die  Finanzierung der  Unternehmensgründung keine"]
[null,null,"befriedigende Lösung in Bezug auf das Aufbringen der erforderlichen Eigenmittel durch den oder die Gründer gibt!"]
[null,null,"Die Höhe der aufzubringenden Eigenmittel hängt  "]
[null,null,null,"a) vom Mittelbedarf in Bezug auf das Gründungsvorhaben,"]
[null,null,null,"b) von eventuellen Vorgaben in den  Rechtsvorschiften zur gewählten Rechtsform sowie letztlich"]
[null,null,null,"c) von den Möglichkeiten der Gründer ab, derartige Mittel in das Vorhaben einzubringen."]
[null,null,"Generell gilt:  Die Ausstattung des zu gründenden Unternehmens mit Eigenmitteln bildet einerseits die Handlungsgrundlage für die Ingangsetzung und Aufrechterhaltung"]
[null,null,"des Geschäftsbetriebes des Unternehmens sowie seiner finanziellen Unabhängigkeit und andererseits die die Haftungsgrundlage gegenüber den künftigen Gläubigern (Liefe-"]
[null,null,"ranten, Kreditgebern u.  a.)."]
[null,null,null,null,null,null,null,null,null,null,"Aufgabe:","Tragen Sie in nachstehende Tabelle ein, was Ihrer Meinung nach ",null,null,null,null,null,null,null,null,null,null,null,null,null,null,null,null,null,null,null,null,null,null,null,null,1,"Dokument??"]
[null,null,null,null,null,null,null,null,null,null,null,"alles als Einlagen eines Gründers in Frage kommen kann!",null,null,null,null,null,null,null,null,null,null,null,null,null,null,null,null,null,null,null,null,null,null,null,null,{"$f":"AK16+1","v":2},"Startbilanz"]
[null,null,null,null,null,null,null,null,null,null,null,null,null,null,null,null,null,null,null,null,null,null,null,null,null,null,null,null,null,null,null,null,null,null,null,null,{"$f":"AK17+1","v":3},"Gründungsbilanz"]
[null,null,null,null,null,null,null,null,null,null,"Nr.","Mögliche Einlagen",null,null,null,null,null,null,null,null,null,null,null,null,null,null,null,null,null,null,null,null,null,null,null,null,4,"Erstbilanz"]
[null,null,null,null,null,null,null,null,null,null,1,null,null,null,null,null,null,null,null,null,null,null,null,null,null,null,null,null,null,null,null,null,null,null,null,null,5,"Eröffnungsbilanz"]
[null,null,null,null,null,null,null,null,null,null,{"$f":"K20+1","v":2},null,null,null,null,null,null,null,null,null,null,null,null,null,null,null,null,null,null,null,null,null,null,null,null,null,6,"Lagebericht"]
[null,null,null,null,null,null,null,null,null,null,{"$f":"K21+1","v":3}]
[null,null,null,null,null,null,null,null,null,null,4]
[null,null,null,null,null,null,null,null,null,null,5]
[null,null,null,null,null,null,null,null,null,null,6]
[]
[]
[null,null,null,null,null,null,null,null,null,null,"Frage 1: ","Kann man mit einem Einsatz von 1,00 EUR eine Kapitalgesellschaft gründen?"]
[]
[]
[null,null,null,null,null,null,null,null,null,null,"Frage 2: ","Wie nennt man das Dokument, das die wirtschaftliche Lage eines Unternehmens"]
[null,null,null,null,null,null,null,null,null,null,null,"zu Beginn seiner aktiven Unternehmenstätigkeit abbildet?"]
[null,null,null,null,null,null,null,null,null,null,null,null,null,0,null,null,"Nicht zutreffend!"]

{"sheet":"07_Businessplan","index":7,"n_rows":13,"n_cols":15,"rows_kept":13,"cut":false,"hidden":false,"merged":[[2,2,2,9]]}
[]
[]
[]
[null,null,"Businessplan zur Unternehmensgründung"]
[]
[null,null,"Der Businessplan ist ein Skript, in dem alle Ergebnisse von Recherchen und Entscheidungen aus der Orientierungs- und der Konzeptionsphase in einem Dokument  zusammengefasst sind."]
[null,null,"Dieses Dokument dient in erster Linie der Überprüfung und Bewertung der Machbarkeit der skizzierten Geschäftsidee des Unternehmensgründers und im Weiteren als Drehbuch bei"]
[null,null,"der definitiven  Umsetzung dieser Idee bis hin zur der Ingangsetzung des eigentlichen Geschäftsbetriebes des neuen Unternehmens."]
[null,null,"Der Businessplan sollte vom künftigen Unternehmer selbst geschrieben und unterschrieben werden, nur dann wird er mit dem Konzept so vertraut sein, dass er bei Gesprächen mit Behörden"]
[null,null,"(Gewerbeamt , Finanzamt u. a.), mit der Hausbank, mit Förderstellen und weiteren Personen überzeugend wirkt."]
[null,null,"Für den Aufbau des Businessplanes sollte die in nachstehender Grafik skizzierte Gliederung verwendet werden. Klick auf \"Grafik-Anzeige-Start\" und dann Drehfeld betätigen!"]
[]
[null,null,null,null,null,null,null,null,null,null,null,null,null,null,0]

{"sheet":"08_BWL_Grundbegriffe","index":8,"n_rows":25,"n_cols":32,"rows_kept":25,"cut":false,"hidden":true,"merged":[[2,2,2,9],[13,6,13,8],[13,9,13,11],[12,31,14,31],[12,2,14,2],[12,3,14,5],[13,21,13,22],[13,23,13,24],[13,25,13,26],[13,27,13,28],[13,29,13,30],[12,6,12,14],[12,15,12,30],[13,15,13,16],[13,17,13,18],[13,19,13,20],[23,3,23,5],[24,3,24,5],[18,3,18,5],[19,3,19,5],[20,3,20,5],[13,12,13,14],[21,3,21,5],[22,3,22,5],[15,3,15,5],[16,3,16,5],[17,3,17,5]]}
[]
[]
[]
[null,null,"Wissenstests für Gründer: BWL-Grundbegriffe"]
[]
[null,null,"Die Geschäftsaktionen und zugehörigen Entscheidungen eines Gründers betreffen fast immer zugleich auch Sachverhalte, die die stichtagsbezogene wirtschaftliche Lage seines"]
[null,null,"Unternehmens verändern und/oder zeitraumbezogene ökonomische Stromgößen wertmäßiger oder finanzieller Art repräsentieren."]
[]
[null,null,"Analog zu diesem Beispiel sollen nun die nachstehend aufgeführen Sachverhalte (Geschäftsvorfälle)  in ihrem Bezug zu betriebswirtschaftlichen Grundbegriffen beurteilt werden."]
[null,null,"Fügen Sie in die aus Ihrer Sicht zutreffenden Zellen ein \"X\" ein!      Bedeutung: Z = Zugang;  A = Abgang; 0 = keine Änderung;  J = zutreffend; N = Nicht zutreffend."]
[null,null,"Anschließend ist der Button \"Überprüfen\" anzuklicken, um zu sehen, ob alles richtig ist. "]
[]
[null,null,"Nr.","Sachverhalt (Geschäftsvorfall)",null,null,"stichtagsbezogen",null,null,null,null,null,null,null,null,"zeitraumbezogen",null,null,null,null,null,null,null,null,null,null,null,null,null,null,null,"Kom-mentar"]
[null,null,null,null,null,null,"Vermögen",null,null,"Eigenkapital",null,null,"Fremdkapital",null,null,"Aufwand",null,"Ertrag",null,"Kosten",null,"Leistung",null,"Ausgabe",null,"Einnahme",null,"Auszahlung",null,"Einzahlung"]
[null,null,null,null,null,null,"Z","A",0,"Z","A",0,"Z","A",0,"J","N","J","N","J","N","J","N","J","N","J","N","J","N","J","N"]
[null,null,1,"Der Unternehmer kauft  einen neuen Computer mit Zahlungsziel."]
[null,null,{"$f":"C16+1","v":2},"Der Unternehmer bezahlt den monatlichen Bruttolohn für Beschäftigte per Banküberweisung."]
[null,null,{"$f":"C17+1","v":3},"Auf dem Bankkonto des Unternehmers geht eine Anzahlung auf eine Bestellung ein."]
[null,null,4,"Zum Berichtstermin wird eine Bestanderhöhung bei Fertigerzeugnissen ermittelt."]
[null,null,5,"Der Unternehmer verkauft aus dem Bestand an Fertigerzeugnissen Produkte an den Kunden K. (mit Zahlungsziel) "]
[null,null,6,"Vom Geschäftskonto des Unternehmers werden eine Tilgungsrate sowie die Zinsen zu einem Kredit per Lastschrift abgebucht."]
[null,null,7,"Der Kunde K. begleicht den Rechnungsbetrag betreffs Geschäftsvorfall Nr. 5. ohne Abzug."]
[null,null,8,"Der  Unternehmer tätigt eine Rückstellung für eine im Abschlussjahr unterlassene Reparatur einer Maschine."]
[null,null,9,"Der Unternehmer kauft 5 Aktenordner (Büromaterial) gegen Barzahlung (Kasse)."]
[null,null,10,"Der Unternehmer tätigt eine Einzahlung von seinem Privatkonto auf das Geschäftskonto seines Unternehmens per Online-Baning."]

{"sheet":"09_Entsch_Test1","index":9,"n_rows":57,"n_cols":15,"rows_kept":57,"cut":false,"hidden":true,"merged":[[2,2,2,9],[50,7,50,8],[50,4,50,5],[55,3,56,3],[49,4,49,8],[49,2,56,2],[50,3,53,3]]}
[]
[]
[]
[null,null,"Tests zum Thema \"Entscheidungen\""]
[]
[null,null,"Test 01:"]
[null,null,"Ein risikoneutraler Unternehmensgründer steht vor der Frage, ob er eine im Prozess der Leistungserstellung festgestellte Kostenabweichung "]
[null,null,"in Höhe von",8000," EUR näher untersuchen soll oder nicht."]
[null,null,"Lässt er die Sache auf sich beruhen, dann muss er - nach seiner Erfahrung  - mit einer Wahrscheinlichkeit von",null,null,null,null,null,null,null,40," Prozent damit"]
[null,null,"rechnen, dass diese Mehrkosten auch in der nächsten Abrechnungsperiode anfallen."]
[null,null,"Führt er jedoch eine Ursachenanalyse durch, so ist damit ein Aufwand in Höhe von\t\t\t",null,null,null,null,null,null,1000," EUR verbunden, allerdings sinkt dann die"]
[null,null,"Wahrscheinlichkeit des Fortbestehens der Kostenüberschreitung auf",null,null,null,null,null,10," Prozent."]
[null,null,"Ihre Aufgabe:"]
[null,null,"Überprüfen Sie unter Nutzung des nachstehenden Schemas die Entscheidungalternativen mit ihren möglichen Wirkungen und geben Sie"]
[null,null,"dann an, welcher Variante der Unternehmengründer den Vorzug geben sollte (mit Begründung)!"]
[null,null,"(Hinweis: Bei Berechnungen sind Kosten- und Aufwandsgrößen mit einem \"Minus\"-Zeichen zu versehen)."]
[]
[null,null,null,"Variante 1:",null,null,null,"Wahrscheinlichkeit",null,"Wirkung (Kostenabweichung)",null,null,"Erwartungswert EW1"]
[null,null,null,"Analyse durchführen",null,"Aufwand",null,null," [-]",null," [EUR]",null,null," EUR"]
[]
[null,null,null,null,null,null,null,null,"[-]",null," [EUR]"]
[]
[]
[null,null,null,null,null,null,null,"Wahrscheinlichkeit",null,null,null,null,"Erwartungswert EW2"]
[null,null,null,null,null,null,null,null," [-]",null," [EUR]",null,null,"  [EUR]"]
[]
[null,null,null,"Variante 2: ",null,"Aufwand",null,null," [-]",null," [EUR]"]
[null,null,null,"Keine Analyse durchführen"]
[]
[null,null,"Antwort:"]
[]
[]
[]
[]
[]
[null,null,"Test 02:"]
[null,null,"Ein Unternehmensgründer hat mit seiner Firma \"X-GmbH\" eine gute Marktposition erreicht und bietet dem bisherigen alleinigen Marktführer, "]
[null,null,"dem Unternehmen \"Y- GmbH\" Konkurrenz. Allerdings stagnieren wegen weitgehender Marksättigung die  Umsätze beider Unternehmen."]
[null,null,"Damit stehen beide Unternehmen vor der Entscheidung, den Umsatz durch geeignete Werbemaßnahmen aktiv zu fördern."]
[null,null,"Mit einem Werbeaufwand von",null,null,10000," [EUR] kann eines der Unternehmen den umsatzabhängigen Gewinn der Branche um \t",null,null,null,null,null,null,15000," [EUR]"]
[null,null,"steigern. Da es sich bei den angebotenen Produkte um homogene Güter handelt, kommt der Gewinnzuwachs jenem der beiden Unternehmen je"]
[null,null,"zur Hälfte zu, also zum Betrag von",null,null,{"$f":"N40/2","v":7500}," [EUR]."]
[null,null,"Für das Unternehmen, dass diese Werbung ausführt, ergibt sich damit ein Saldo von ",null,null,null,null,null,null,{"$f":"N40/2-F40","v":-2500}," [EUR]."]
[null,null,"Werben hingegen beide Unternehmen gleichzeitig mit einem Aufwand von je",null,null,null,null,null,null,{"$f":"F40","v":10000}," [EUR], dann erhöht sich der umsatzabhängige "]
[null,null,"Gewinn um",30000," [EUR]. Dies bedeutet, dass jedes der beiden Unternehmen ein positives Ergebnis von  ",null,null,null,null,null,null,{"$f":"D45/2-J44","v":5000}," [EUR] erzielen könnte."]
[]
[null,null,"Ihre Aufgabe:"]
[null,null,"Vervollständigen Sie die nachstehende Tabelle der  möglichen \"'Auszahlungen\" und bewerten Sie die Ergebnssse (Optionsbutton)!"]
[]
[null,null,"Unternehmen X-GmbH",null,"Unternehmen Y-GmbH",null,null,null,null,"  Dies bedeutet:"]
[null,null,null,"Werben","Werben",null,null,"Nicht werben",null,null,"Eigennütziges Verhalten eines der Unternehmen"]
[null,null,null,null,"Wirkung für X","Wirkung  für Y",null,"Wirkung für X","Wirkung  für Y",null,"bringt für dieses Unternehmen"]
[null,null,null,null,null,{"$f":"L45","v":5000},null,null,{"$f":"F42","v":7500}]
[null,null,null,null,{"$f":"L45","v":5000},null,null,{"$f":"J43","v":-2500},null,null,"Führt eigennütziges Verhalten aller Beteiligten zu"]
[]
[null,null,null,"Nicht werben",null,{"$f":"J43","v":-2500},null,null,0]
[null,null,null,null,{"$f":"F42","v":7500},null,null,0]

{"sheet":"Blanko1","index":10,"n_rows":0,"n_cols":0,"rows_kept":0,"cut":false,"hidden":true,"merged":[]}